bitfinex-derivatives/quotes_ETHF0:USTF0_20250503
["timestamp","ask_amount","ask_price","bid_price","bid_amount"]
[1746274382291,1.09555,1825.1,1825.0,7.30760345]
[1746274382498,2.77465,1825.1,1825.0,7.30760345]
[1746274382698,3.57395,1825.1,1825.0,7.30760345]
[1746274383097,7.29195,1825.1,1825.0,7.30760345]
[1746274385500,1.09567,1825.0,1824.8,1.09573]
[1746274385702,6.79307,1825.0,1824.9,2.1919]
[1746274386098,10.51107,1825.0,1824.9,2.1919]
[1746274388506,10.51107,1825.0,1824.9,3.28757]
[1746274388902,10.51107,1825.0,1824.9,2.1919]
[1746274389103,1.09567,1824.9,1824.8,2.83309]
[1746274389302,2.68577,1824.9,1824.8,2.83309]
[1746274390106,6.40377,1824.9,1824.8,2.83309]
[1746274392308,1.09573,1824.8,1824.7,4.55378]
[1746274392504,3.56233,1824.8,1824.7,4.55378]
[1746274392705,3.56233,1824.8,1824.7,3.458]
[1746274392906,6.77013,1824.8,1824.7,3.458]
[1746274393217,10.48813,1824.8,1824.7,3.458]
[1746274395305,1.09585,1824.6,1824.5,1.6371]
[1746274395810,1.09585,1824.6,1824.5,2.73301]
[1746274396003,2.80595,1824.6,1824.5,2.73301]
[1746274396204,6.52395,1824.6,1824.5,2.73301]
[1746274397010,3.718,1824.6,1824.5,2.73301]
[1746274397210,4.0143,1824.8,1824.6,1.09579]
[1746274397510,1.09574,1824.8,1824.7,1.09579]
[1746274397705,1.09574,1824.8,1824.7,2.78709]
[1746274398113,4.81374,1824.8,1824.7,2.78709]
[1746274398314,1.09579,1824.7,1824.6,1.09579]
[1746274398506,2.83209,1824.7,1824.6,1.91859]
[1746274398812,1.7363,1824.7,1824.6,1.91859]
[1746274399922,1.09572,1824.9,1824.8,1.09573]
[1746274400523,5.95425,1825.0,1824.9,1.09567]
[1746274401120,9.67225,1825.0,1824.9,1.09567]
[1746274401610,9.67225,1825.0,1824.9,1.90507]
[1746274402827,8.02141,1825.0,1824.9,1.90507]
[1746274404026,6.9258,1825.0,1824.9,1.90507]
[1746274404220,3.2078,1825.0,1824.9,1.90507]
[1746274406830,3.2078,1825.0,1824.9,5.74087]
[1746274408636,1.0956,1825.1,1825.0,1.09561]
[1746274409124,4.8136,1825.1,1825.0,1.09561]
[1746274409731,1.09561,1825.0,1824.9,3.8358]
[1746274409928,6.88431,1825.0,1824.9,3.8358]
[1746274410232,15.60231,1825.0,1824.9,3.8358]
[1746274411135,10.60231,1825.0,1824.9,3.8358]
[1746274415137,7.39451,1825.0,1824.9,3.8358]
[1746274415336,10.60231,1825.0,1824.9,3.8358]
[1746274420637,14.25089584,1825.0,1824.9,3.8358]
[1746274423733,16.77391409,1825.0,1824.9,3.8358]
[1746274425144,13.56611409,1825.0,1824.9,3.8358]
[1746274425436,16.77391409,1825.0,1824.9,3.8358]
[1746274426540,25.23291409,1825.0,1824.9,3.8358]
[1746274426836,27.24057329,1825.0,1824.9,3.8358]
[1746274427034,34.54290286,1825.0,1824.9,3.8358]
[1746274427241,1.09567,1824.9,1824.8,2.192]
[1746274427446,3.54237,1824.9,1824.8,2.192]
[1746274427643,1.09591,1824.5,1824.4,6.0128]
[1746274428138,4.81391,1824.5,1824.4,6.0128]
[1746274429946,6.40181,1824.5,1824.4,6.0128]
[1746274430939,10.06053645,1824.5,1824.4,6.8344]
[1746274434147,10.06053645,1824.5,1824.4,3.3764]
[1746274434350,8.47263645,1824.5,1824.4,3.3764]
[1746274435142,4.81391,1824.5,1824.4,3.3764]
[1746274435946,4.81391,1824.5,1824.4,5.5689]
[1746274437749,6.51591,1824.5,1824.4,2.1925]
[1746274437950,8.24031,1824.5,1824.4,2.1925]
[1746274439848,7.39051,1824.5,1824.4,2.1925]
[1746274440446,4.81391,1824.5,1824.4,2.1925]
[1746274442150,4.81391,1824.5,1824.4,3.9234]
[1746274442450,3.718,1824.5,1824.4,5.01937]
[1746274442651,3.718,1824.5,1824.4,13.47837]
[1746274443247,6.18697949,1824.5,1824.4,13.47837]
[1746274444951,6.18697949,1824.5,1824.4,16.68617]
[1746274446455,4.30356,1824.8,1824.7,1.09579]
[1746274446756,1.09576,1824.8,1824.7,4.55479]
[1746274447353,1.09576,1824.8,1824.7,6.17749]
[1746274447550,7.95825367,1824.9,1824.7,6.17749]
[1746274447748,7.95825367,1824.9,1824.8,2.4937]
[1746274447948,6.86255367,1824.9,1824.8,3.58943]
[1746274449454,3.65475367,1824.9,1824.8,3.58943]
[1746274450352,4.75042367,1824.9,1824.8,3.58943]
[1746274450552,1.09567,1824.9,1824.8,3.58943]
[1746274453657,7.27181367,1825.0,1824.9,1.09567]
[1746274453859,7.27181367,1825.0,1824.9,2.84557]
[1746274454158,10.98981367,1825.0,1824.9,2.84557]
[1746274455460,10.98981367,1825.0,1824.9,1.7499]
[1746274455959,10.98981367,1825.0,1824.9,2.84557]
[1746274456858,10.98981367,1825.0,1824.9,1.7499]
[1746274457359,14.19761367,1825.0,1824.9,1.7499]
[1746274457960,1.09567,1824.9,1824.8,0.871]
[1746274458152,2.83087,1824.9,1824.8,0.871]
[1746274458562,1.09573,1824.8,1824.7,6.21205]
[1746274458755,1.09573,1824.8,1824.7,7.00795]
[1746274458954,1.09573,1824.8,1824.7,5.9122]
[1746274459157,1.95273,1824.8,1824.7,6.21209]
[1746274464359,1.95273,1824.8,1824.7,5.1163]
[1746274465168,7.30183,1824.8,1824.7,5.1163]
[1746274465863,7.30183,1824.8,1824.7,3.459]
[1746274468470,1.09585,1824.6,1824.5,3.2078]
[1746274468663,1.09585,1824.6,1824.4,9.42824]
[1746274469763,1.09585,1824.6,1824.5,1.09591]
[1746274469965,1.09583,1824.7,1824.6,1.09585]
[1746274470267,1.09579,1824.7,1824.6,1.09585]
[1746274470861,1.09581,1824.7,1824.6,1.09583]
[1746274471668,6.79288,1824.8,1824.6,1.09581]
[1746274471872,6.79288,1824.8,1824.7,2.5094]
[1746274472170,10.51088,1824.8,1824.7,2.5094]
[1746274472468,8.02158,1824.8,1824.7,3.2993]
[1746274473168,4.81378,1824.8,1824.7,3.2993]
[1746274473371,4.81378,1824.8,1824.7,4.39509]
[1746274474571,4.81378,1824.8,1824.7,3.2993]
[1746274474968,6.51668,1824.8,1824.7,3.2993]
[1746274475971,6.51668,1824.8,1824.7,4.39509]
[1746274478774,6.51668,1824.8,1824.7,3.2993]
[1746274479275,4.81378,1824.8,1824.7,4.39509]
[1746274481177,1.09578,1824.8,1824.7,4.39509]
[1746274481675,1.09578,1824.8,1824.7,3.2993]
[1746274482179,4.81378,1824.8,1824.7,3.2993]
[1746274482368,4.81378,1824.8,1824.7,5.7459]
[1746274482570,6.41038,1824.8,1824.7,5.7459]
[1746274483974,6.41038,1824.8,1824.7,6.84169]
[1746274484176,6.41038,1824.8,1824.7,5.7459]
[1746274488081,10.76382227,1824.8,1824.7,5.7459]
[1746274488876,10.76382227,1824.8,1824.7,7.938]
[1746274491273,10.76382227,1824.8,1824.7,9.03379]
[1746274491477,12.59715828,1824.8,1824.7,9.03379]
[1746274494982,9.90477828,1824.8,1824.7,9.03379]
[1746274495174,6.18677828,1824.8,1824.7,17.24159]
[1746274497083,6.18677828,1824.8,1824.7,20.95959]
[1746274499780,7.30232957,1824.9,1824.8,1.09573]
[1746274499975,6.86988328,1825.1,1824.8,6.16543]
[1746274500185,6.86988328,1825.1,1825.0,1.09561]
[1746274500585,3.66208328,1825.1,1825.0,2.72151]
[1746274500989,3.66208328,1825.1,1825.0,4.43531]
[1746274504892,1.7448,1825.3,1825.2,1.09549]
[1746274505193,1.7448,1825.3,1825.2,4.55349]
[1746274506896,3.66208328,1825.4,1825.3,1.09543]
[1746274507098,5.35568328,1825.4,1825.3,3.61713]
[1746274508799,6.45105328,1825.4,1825.3,3.61713]
[1746274508990,5.35568328,1825.4,1825.3,3.61713]
[1746274509393,6.45105328,1825.4,1825.3,3.61713]
[1746274509793,2.78897,1825.4,1825.3,3.61713]
[1746274510203,1.6936,1825.4,1825.3,3.61713]
[1746274510999,2.78897,1825.4,1825.3,3.61713]
[1746274511500,1.6936,1825.4,1825.3,3.61713]
[1746274513201,1.6936,1825.4,1825.3,4.46173]
[1746274514102,4.9014,1825.4,1825.3,4.46173]
[1746274514497,3.2078,1825.4,1825.3,45.26173]
[1746274516200,3.2916,1825.6,1825.5,1.09531]
[1746274516396,1.6264,1825.6,1825.5,1.09531]
[1746274516602,6.86988328,1825.7,1825.6,1.09525]
[1746274516801,6.86988328,1825.7,1825.6,3.50825]
[1746274517605,3.66208328,1825.7,1825.6,3.50825]
[1746274517806,3.66208328,1825.7,1825.6,4.34575]
[1746274518899,6.19708328,1825.8,1825.7,1.09519]
[1746274519103,6.19708328,1825.8,1825.7,2.71599]
[1746274522195,3.66208328,1825.8,1825.7,2.71599]
[1746274523008,5.26678328,1825.8,1825.7,2.71599]
[1746274523306,6.09808328,1825.8,1825.7,2.71599]
[1746274523910,2.436,1825.8,1825.7,2.71599]
[1746274524101,2.436,1825.8,1825.7,1.09519]
[1746274526409,2.436,1825.8,1825.7,3.28609]
[1746274528910,2.436,1825.8,1825.7,4.90419]
[1746274529807,1.6047,1825.8,1825.7,4.90419]
[1746274530007,1.6047,1825.8,1825.7,45.70419]
[1746274530209,5.12766,1826.0,1825.7,45.70419]
[1746274530210,0.8248,1826.0,1825.9,1.09507]
[1746274530508,2.5351,1826.1,1826.0,1.09501]
[1746274530710,3.63005,1826.1,1826.0,1.09501]
[1746274531813,2.5351,1826.1,1826.0,3.53981]
[1746274533115,3.63005,1826.1,1826.0,3.53981]
[1746274533312,3.2078,1826.2,1826.0,2.4448]
[1746274533617,12.31158328,1826.4,1826.3,1.09483]
[1746274534313,8.59358328,1826.4,1826.3,2.78203]
[1746274534621,9.68835328,1826.4,1826.3,2.78203]
[1746274534811,8.59358328,1826.4,1826.3,2.78203]
[1746274535011,9.68835328,1826.4,1826.3,2.78203]
[1746274535413,6.02627,1826.4,1826.3,2.78203]
[1746274535811,6.02627,1826.4,1826.3,1.09483]
[1746274536921,4.9315,1826.4,1826.3,1.09483]
[1746274537924,6.02627,1826.4,1826.3,1.09483]
[1746274538622,4.9315,1826.4,1826.3,1.09483]
[1746274539027,4.9315,1826.4,1826.3,2.67793]
[1746274541318,6.02627,1826.4,1826.3,2.67793]
[1746274542316,2.81847,1826.4,1826.3,2.67793]
[1746274544327,1.7237,1826.4,1826.3,2.67793]
[1746274544827,2.81847,1826.4,1826.3,2.67793]
[1746274545129,0.8361,1826.5,1826.4,1.09477]
[1746274545425,0.8361,1826.5,1826.4,6.13607]
[1746274545627,3.2078,1826.6,1826.5,1.09471]
[1746274546022,2.4794,1826.7,1826.6,1.09465]
[1746274546423,2.4794,1826.7,1826.6,2.77415]
[1746274546928,1.6356,1826.7,1826.6,2.77415]
[1746274547322,4.0549,1826.8,1826.7,1.09459]
[1746274547522,4.0549,1826.8,1826.7,6.22909]
[1746274547723,5.6865,1826.8,1826.7,6.22909]
[1746274548123,9.4045,1826.8,1826.7,6.22909]
[1746274548321,8.5574,1826.8,1826.7,6.22909]
[1746274549236,4.8394,1826.8,1826.7,6.22909]
[1746274550134,8.5574,1826.8,1826.7,6.22909]
[1746274550327,9.65193,1826.8,1826.7,6.22909]
[1746274554433,8.5574,1826.8,1826.7,6.22909]
[1746274554732,9.65193,1826.8,1826.7,6.22909]
[1746274556335,8.5574,1826.8,1826.7,6.22909]
[1746274559134,5.3496,1826.8,1826.7,6.22909]
[1746274559935,6.44413,1826.8,1826.7,6.22909]
[1746274560333,6.44413,1826.8,1826.7,4.54959]
[1746274560538,6.44413,1826.8,1826.7,3.455]
[1746274560734,6.44413,1826.8,1826.7,4.54959]
[1746274560935,6.44413,1826.8,1826.7,3.455]
[1746274562036,6.44413,1826.8,1826.7,4.54959]
[1746274562238,6.44413,1826.8,1826.7,3.455]
[1746274562737,6.44413,1826.8,1826.7,4.54959]
[1746274563536,6.44413,1826.8,1826.7,3.455]
[1746274565941,1.09471,1826.5,1826.4,6.95834]
[1746274566144,4.81271,1826.5,1826.4,6.95834]
[1746274566644,6.1331,1826.5,1826.4,6.95834]
[1746274567547,7.22781,1826.5,1826.4,6.95834]
[1746274567846,7.22781,1826.5,1826.4,3.455]
[1746274568238,7.22781,1826.5,1826.4,5.6451]
[1746274568948,7.22781,1826.5,1826.4,6.73987]
[1746274571750,7.22781,1826.5,1826.4,5.6451]
[1746274572248,7.22781,1826.5,1826.4,6.73987]
[1746274573149,4.81271,1826.5,1826.4,8.34767]
[1746274573538,3.718,1826.5,1826.4,8.34767]
[1746274573950,4.81271,1826.5,1826.4,8.34767]
[1746274580855,4.81271,1826.5,1826.4,7.2529]
[1746274581146,4.81271,1826.5,1826.4,8.34767]
[1746274581352,7.24301,1826.5,1826.4,8.34767]
[1746274581856,7.24301,1826.5,1826.4,5.6451]
[1746274582047,7.24301,1826.5,1826.4,6.73987]
[1746274582448,7.24301,1826.5,1826.4,8.32637]
[1746274584253,7.24301,1826.5,1826.4,7.2316]
[1746274584452,7.24301,1826.5,1826.4,5.6451]
[1746274590459,11.60318406,1826.5,1826.4,5.6451]
[1746274591055,11.60318406,1826.5,1826.4,6.73987]
[1746274591361,10.75358406,1826.5,1826.4,8.35217]
[1746274592258,9.17288406,1826.5,1826.4,8.35217]
[1746274592654,8.07817406,1826.5,1826.4,8.35217]
[1746274593255,4.36017406,1826.5,1826.4,8.35217]
[1746274594355,5.45488406,1826.5,1826.4,8.35217]
[1746274595165,9.17288406,1826.5,1826.4,8.35217]
[1746274597864,9.17288406,1826.5,1826.4,10.79307]
[1746274598057,8.07817406,1826.5,1826.4,10.79307]
[1746274599159,4.36017406,1826.5,1826.4,10.79307]
[1746274599368,6.86988328,1826.6,1826.5,1.09471]
[1746274599866,6.86988328,1826.6,1826.5,3.60081]
[1746274600960,3.66208328,1826.6,1826.5,3.60081]
[1746274601157,3.66208328,1826.6,1826.5,8.60081]
[1746274601362,5.48808968,1826.7,1826.6,1.09465]
[1746274601567,5.48808968,1826.7,1826.6,6.79155]
[1746274601766,5.48808968,1826.7,1826.6,52.59155]
[1746274602373,7.30232957,1826.8,1826.7,1.09459]
[1746274602674,7.30232957,1826.8,1826.7,6.18249]
[1746274602973,7.30232957,1826.8,1826.7,6.61404323]
[1746274603174,7.30232957,1826.8,1826.7,46.98249]
[1746274603575,14.91113957,1827.2,1827.1,1.09435]
[1746274603764,14.91113957,1827.2,1827.1,4.54935]
[1746274603968,14.91113957,1827.2,1827.1,3.455]
[1746274604275,18.62913957,1827.2,1827.1,4.54935]
[1746274604775,18.62913957,1827.2,1827.1,3.455]
[1746274605777,18.62913957,1827.2,1827.1,5.6442]
[1746274608277,17.84033957,1827.2,1827.1,6.73855]
[1746274608467,10.53801,1827.2,1827.1,6.73855]
[1746274608671,10.53801,1827.2,1827.1,7.54415]
[1746274609074,3.718,1827.2,1827.1,7.54415]
[1746274610281,5.98975,1827.3,1827.2,1.09429]
[1746274611181,9.70775,1827.3,1827.2,1.09429]
[1746274611381,9.70775,1827.3,1827.1,7.5441]
[1746274611682,1.6413,1827.2,1827.1,7.5441]
[1746274612780,2.73559,1827.2,1827.1,6.7385]
[1746274613670,1.6413,1827.2,1827.1,6.7385]
[1746274614075,2.73559,1827.2,1827.1,6.7385]
[1746274614581,1.6413,1827.2,1827.1,6.7385]
[1746274616391,3.2078,1827.3,1827.2,1.09429]
[1746274616682,4.30203,1827.3,1827.2,4.43139]
[1746274616884,6.04393,1827.3,1827.2,4.43139]
[1746274617084,6.9258,1827.3,1827.2,4.43139]
[1746274620283,3.2078,1827.5,1827.4,1.09417]
[1746274620489,3.2078,1827.5,1827.4,4.54717]
[1746274621088,9.26740957,1827.8,1827.4,3.453]
[1746274621289,1.09399,1827.7,1827.6,1.094]
[1746274621492,1.96507,1827.8,1827.7,1.09399]
[1746274621682,1.96503,1827.8,1827.7,4.54699]
[1746274622085,7.31153,1827.8,1827.7,4.54699]
[1746274622287,6.2176,1827.8,1827.7,4.54699]
[1746274622491,7.31153,1827.8,1827.7,4.54699]
[1746274622785,7.31153,1827.8,1827.7,3.453]
[1746274623794,12.31153,1827.8,1827.7,3.453]
[1746274624095,7.31153,1827.8,1827.7,3.453]
[1746274624295,12.31153,1827.8,1827.7,3.453]
[1746274624788,7.31153,1827.8,1827.7,3.453]
[1746274625288,12.31153,1827.8,1827.3,1.09419]
[1746274625594,4.30196,1827.5,1827.4,4.54717]
[1746274626094,8.01996,1827.5,1827.4,7.06897]
[1746274626594,10.47736,1827.5,1827.4,7.06897]
[1746274626997,9.3832,1827.5,1827.4,7.06897]
[1746274627897,10.47731,1827.5,1827.4,7.06897]
[1746274628392,10.47731,1827.5,1827.4,5.1402]
[1746274628897,10.47731,1827.5,1827.4,4.54717]
[1746274629993,10.47731,1827.5,1827.4,3.453]
[1746274631288,10.47731,1827.5,1827.4,4.54717]
[1746274632001,8.5082,1827.5,1827.4,4.54717]
[1746274632202,6.9258,1827.5,1827.4,6.27627]
[1746274633201,2.5274,1827.7,1827.4,6.27627]
[1746274633202,6.82923,1827.7,1827.6,1.09405]
[1746274633802,6.82923,1827.7,1827.6,2.82315]
[1746274634005,6.82923,1827.7,1827.6,1.7291]
[1746274634202,10.54723,1827.7,1827.6,1.7291]
[1746274634402,10.54723,1827.7,1827.6,2.5721]
[1746274634604,10.54723,1827.7,1827.6,3.66615]
[1746274636407,9.4532,1827.7,1827.6,3.66615]
[1746274636609,6.9258,1827.7,1827.6,3.66615]
[1746274637212,3.2078,1827.7,1827.6,3.66615]
[1746274638110,6.9258,1827.7,1827.6,3.66615]
[1746274638512,8.01979,1827.7,1827.6,3.66615]
[1746274639609,8.01979,1827.7,1827.6,2.5721]
[1746274639811,8.01979,1827.7,1827.6,3.66615]
[1746274640014,6.9258,1827.7,1827.6,1.34115]
[1746274640313,8.01979,1827.7,1827.6,1.34115]
[1746274640512,11.27369,1827.7,1827.6,1.34115]
[1746274641614,10.1797,1827.7,1827.6,2.4352]
[1746274642510,11.27369,1827.7,1827.6,2.4352]
[1746274643715,10.1797,1827.7,1827.6,2.4352]
[1746274643913,10.1797,1827.7,1827.6,1.09405]
[1746274644916,11.27369,1827.7,1827.6,1.09405]
[1746274645115,10.1797,1827.7,1827.6,1.09405]
[1746274645518,9.382,1827.7,1827.6,1.09405]
[1746274647718,8.581,1827.7,1827.6,1.09405]
[1746274649013,9.67499,1827.7,1827.6,1.09405]
[1746274649411,1.09405,1827.6,1827.5,1.09407]
[1746274649612,4.43465,1827.6,1827.5,1.09407]
[1746274650117,8.15265,1827.6,1827.5,1.09407]
[1746274650619,7.0586,1827.6,1827.5,1.09407]
[1746274650820,8.15265,1827.6,1827.5,1.09407]
[1746274651620,8.15265,1827.6,1827.5,3.28277]
[1746274653122,8.15265,1827.6,1827.5,2.1887]
[1746274659923,13.15265,1827.6,1827.5,2.1887]
[1746274660716,8.15265,1827.6,1827.5,2.1887]
[1746274662027,13.15265,1827.6,1827.5,2.1887]
[1746274662626,8.15265,1827.6,1827.5,2.1887]
[1746274664628,14.32832763,1827.6,1827.5,2.1887]
[1746274667328,16.06599334,1827.6,1827.5,2.1887]
[1746274670630,16.15545647,1827.6,1827.5,2.1887]
[1746274673231,15.29415647,1827.6,1827.5,2.1887]
[1746274673632,15.29415647,1827.6,1827.5,3.7815]
[1746274675432,14.46625647,1827.6,1827.5,3.7815]
[1746274676432,12.63776601,1827.6,1827.5,3.7815]
[1746274684035,7.16117609,1827.6,1827.5,3.7815]
[1746274684231,7.16117609,1827.6,1827.5,2.1887]
[1746274687535,7.16645927,1827.6,1827.5,2.1887]
[1746274688540,10.37425927,1827.6,1827.5,2.1887]
[1746274688941,24.89228502,1827.6,1827.5,2.1887]
[1746274690838,24.89228502,1827.6,1827.5,3.7902]
[1746274692538,1.09411,1827.5,1827.4,1.3391]
[1746274692738,4.43251,1827.5,1827.4,1.3391]
[1746274692943,1.09417,1827.4,1827.3,2.5276]
[1746274693541,4.30197,1827.4,1827.3,2.5276]
[1746274694141,8.01997,1827.4,1827.3,2.5276]
[1746274694531,9.70497,1827.4,1827.3,2.5276]
[1746274695948,15.88501918,1827.4,1827.3,2.5276]
[1746274699143,14.20001918,1827.4,1827.3,2.5276]
[1746274700546,23.24820003,1827.4,1827.3,2.5276]
[1746274704045,16.02277647,1827.4,1827.3,2.5276]
[1746274707744,8.71769609,1827.4,1827.3,2.5276]
[1746274714248,5.50989609,1827.4,1827.3,2.5276]
[1746274714450,8.71769609,1827.4,1827.3,2.5276]
[1746274715842,16.02277647,1827.4,1827.3,2.5276]
[1746274720359,14.20833519,1827.4,1827.3,2.5276]
[1746274724361,11.00053519,1827.4,1827.3,2.5276]
[1746274724663,14.20833519,1827.4,1827.3,2.5276]
[1746274724962,15.81803519,1827.4,1827.3,2.5276]
[1746274730958,15.81803519,1827.4,1827.3,3.8599]
[1746274731160,14.72386519,1827.4,1827.3,2.42653]
[1746274731361,13.11416519,1827.4,1827.3,4.96803]
[1746274732266,10.49033519,1827.4,1827.3,4.96803]
[1746274732861,12.14623519,1827.4,1827.3,4.96803]
[1746274735666,11.05206519,1827.4,1827.3,4.96803]
[1746274736968,7.84426519,1827.4,1827.3,4.96803]
[1746274738672,2.75007,1827.4,1827.3,4.96803]
[1746274738967,1.6559,1827.4,1827.3,4.96803]
[1746274740468,2.75007,1827.4,1827.3,4.96803]
[1746274740670,3.61967,1827.4,1827.3,4.96803]
[1746274741169,7.33767,1827.4,1827.3,4.96803]
[1746274742071,3.718,1827.4,1827.3,4.96803]
[1746274749177,4.81217,1827.4,1827.3,4.11363]
[1746274749372,6.43427,1827.4,1827.3,7.56563]
[1746274749778,5.3401,1827.4,1827.3,7.56563]
[1746274751074,5.3401,1827.4,1827.3,9.75463]
[1746274755281,3.718,1827.4,1827.3,9.75463]
[1746274755677,4.81217,1827.4,1827.3,8.6604]
[1746274755983,9.67777,1827.4,1827.3,6.9733]
[1746274756979,9.67777,1827.4,1827.3,8.06753]
[1746274760888,15.86613975,1827.4,1827.3,8.06753]
[1746274761584,15.86613975,1827.4,1827.3,4.61553]
[1746274763685,15.86613975,1827.4,1827.3,3.5213]
[1746274764584,15.87092029,1827.4,1827.3,3.5213]
[1746274765186,16.32155992,1827.4,1827.3,3.5213]
[1746274765486,19.52935992,1827.4,1827.3,3.5213]
[1746274769488,15.87092029,1827.4,1827.3,3.5213]
[1746274769887,12.66312029,1827.4,1827.3,3.5213]
[1746274770090,15.87092029,1827.4,1827.3,3.5213]
[1746274771389,15.87092029,1827.4,1827.3,5.1685]
[1746274772592,12.66312029,1827.4,1827.3,5.1685]
[1746274772785,15.87092029,1827.4,1827.3,5.1685]
[1746274774088,12.66312029,1827.4,1827.3,5.1685]
[1746274774291,15.87092029,1827.4,1827.3,5.1685]
[1746274774991,15.87092029,1827.4,1827.3,6.26273]
[1746274778597,14.77675029,1827.4,1827.3,6.26273]
[1746274778797,13.11895029,1827.4,1827.3,6.26273]
[1746274779197,10.49512029,1827.4,1827.3,6.26273]
[1746274780099,14.21312029,1827.4,1827.3,6.26273]
[1746274781401,11.00532029,1827.4,1827.3,6.26273]
[1746274781596,14.21312029,1827.4,1827.3,6.26273]
[1746274782600,11.00532029,1827.4,1827.3,6.26273]
[1746274782800,11.6837587,1827.4,1827.3,6.26273]
[1746274787500,8.4759587,1827.4,1827.3,6.26273]
[1746274787705,11.6837587,1827.4,1827.3,6.26273]
[1746274787900,10.5895887,1827.4,1827.3,6.26273]
[1746274788207,6.8715887,1827.4,1827.3,6.26273]
[1746274789107,7.9657587,1827.4,1827.3,6.26273]
[1746274789796,6.8715887,1827.4,1827.3,6.26273]
[1746274790105,7.9657587,1827.4,1827.3,6.26273]
[1746274791507,4.7579587,1827.4,1827.3,6.26273]
[1746274791806,7.9657587,1827.4,1827.3,6.26273]
[1746274792703,4.7579587,1827.4,1827.3,6.26273]
[1746274792908,6.8715887,1827.4,1827.3,6.26273]
[1746274793109,7.9657587,1827.4,1827.3,6.26273]
[1746274795106,7.9657587,1827.4,1827.3,5.1685]
[1746274795406,7.9657587,1827.4,1827.3,9.71373]
[1746274796909,6.8715887,1827.4,1827.3,9.71373]
[1746274797112,3.6637887,1827.4,1827.3,9.71373]
[1746274797409,3.6637887,1827.4,1827.3,13.43173]
[1746274799309,0.00478054,1827.4,1827.3,13.43173]
[1746274800110,3.65900816,1827.6,1827.5,1.09411]
[1746274800514,3.65900816,1827.6,1827.5,2.67171]
[1746274801110,3.65900816,1827.6,1827.5,6.38971]
[1746274803413,4.75302816,1827.7,1827.6,1.09405]
[1746274803617,6.48532816,1827.7,1827.6,5.9788]
[1746274803813,7.33302816,1827.7,1827.6,3.45]
[1746274804619,7.33302816,1827.7,1827.6,4.54405]
[1746274805617,7.33302816,1827.7,1827.6,3.45]
[1746274805818,7.33302816,1827.7,1827.6,4.773]
[1746274806820,15.40737737,1828.5,1827.6,25.252161]
[1746274807113,23.47648516,1829.0,1828.9,1.09328]
[1746274807318,15.54898553,1829.0,1828.9,48.55108]
[1746274807512,15.54898553,1829.0,1828.9,53.55108]
[1746274808012,15.54898553,1829.0,1828.9,48.55108]
[1746274808216,15.54898553,1829.0,1828.9,52.26908]
[1746274809220,15.54898553,1829.0,1828.9,52.70939246]
[1746274811520,15.54898553,1829.0,1828.9,52.70865766]
[1746274812618,1.7475,1829.2,1829.1,1.09316]
[1746274812919,1.7475,1829.2,1829.1,4.74053766]
[1746274813116,12.6881,1829.2,1829.1,4.74053766]
[1746274813318,12.6881,1829.2,1829.1,4.73999103]
[1746274813820,13.7812,1829.2,1829.1,3.64683103]
[1746274814119,12.6881,1829.2,1829.1,1.53219103]
[1746274814318,12.6881,1829.2,1829.1,1.09316]
[1746274814516,12.6881,1829.2,1829.1,1.53201907]
[1746274814718,12.6881,1829.2,1829.1,1.09316]
[1746274817119,20.8959,1829.2,1829.0,3.718]
[1746274817320,10.9406,1829.1,1829.0,4.81122]
[1746274817521,13.75916,1829.1,1829.0,3.718]
[1746274817717,12.666,1829.1,1829.0,4.81122]
[1746274822625,2.81856,1829.1,1829.0,4.81122]
[1746274822824,13.75916,1829.1,1829.0,4.81122]
[1746274824040,13.75916,1829.1,1829.0,3.718]
[1746274826730,14.58306,1829.1,1829.0,3.718]
[1746274829532,14.58306,1829.1,1829.0,5.9049]
[1746274831337,17.79086,1829.1,1829.0,6.34542878]
[1746274833036,17.79086,1829.1,1829.0,6.3181615]
[1746274834839,17.79086,1829.1,1829.0,6.31897178]
[1746274836436,2.73096,1830.4,1829.3,2.73257]
[1746274836641,1.7479,1830.2,1830.0,1.0926]
[1746274836834,1.7479,1830.2,1830.1,0.41407178]
[1746274837141,1.7479,1830.2,1830.1,0.41534635]
[1746274837341,1.7479,1830.2,1830.0,48.81838]
[1746274837637,2.84043,1830.2,1830.0,48.81838]
[1746274837838,2.84043,1830.2,1830.0,47.7258]
[1746274838038,2.84043,1830.2,1830.0,48.81841]
[1746274838230,2.84043,1830.2,1830.0,47.7258]
[1746274838830,1.09256,1830.1,1830.0,47.7258]
[1746274839029,2.84046,1830.1,1830.0,44.518]
[1746274839235,2.84046,1830.1,1830.0,47.7258]
[1746274839435,2.84046,1830.1,1830.0,6.9258]
[1746274839835,6.04826,1830.1,1830.0,3.718]
[1746274840039,1.09275,1829.8,1829.6,41.89284]
[1746274840239,1.09275,1829.8,1829.7,3.5932]
[1746274840545,1.09272,1829.9,1829.7,4.68596]
[1746274841040,1.09264,1830.0,1829.8,1.09274]
[1746274841240,1.6066,1829.9,1829.8,2.40674]
[1746274842437,1.6066,1829.9,1829.8,6.12474]
[1746274842944,2.69928,1829.9,1829.8,5.032]
[1746274843437,1.6066,1829.9,1829.8,6.12474]
[1746274843643,1.09266,1830.0,1829.8,6.12474]
[1746274843830,1.09266,1830.0,1829.8,8.31074]
[1746274844035,1.09266,1830.0,1829.9,0.3832]
[1746274845237,1.09268,1829.9,1829.8,4.3624]
[1746274846047,6.26027,1830.2,1829.8,4.3624]
[1746274846048,3.2078,1830.8,1829.9,2.7317]
[1746274846242,1.5753,1830.6,1830.1,3.2078]
[1746274846547,3.2078,1830.2,1830.0,3.528]